fUSD/lending_fUSD_20250302
["ID","MTS","AMOUNT","RATE_DAILY","PERIOD"]
[355145148,1740935454752,-500.0,0.00026646,2]
[355145149,1740935454762,-500.0,0.00026646,2]
[355145150,1740935454773,-500.0,0.00026646,2]
[355145151,1740935454783,-500.0,0.00026646,2]
[355145152,1740935454793,-500.0,0.00026646,2]
[355145153,1740935454804,-500.0,0.00026646,2]
[355145154,1740935454814,-500.0,0.00026646,2]
[355145155,1740935454824,-500.0,0.00026646,2]
[355145156,1740935454834,-500.0,0.00026646,2]
[355145157,1740935454844,-500.0,0.00026646,2]
[355145158,1740935454855,-500.0,0.00026646,2]
[355145159,1740935454866,-500.0,0.00026646,2]
[355145160,1740935454876,-500.0,0.00026646,2]
[355145161,1740935454885,-500.0,0.00026646,2]
[355145162,1740935454902,-1526.5,0.00026646,2]
[355145163,1740935454912,-221.34679339,0.00026646,2]
[355145164,1740935454921,-500.0,0.00026646,2]
[355145165,1740935454931,-500.0,0.00026646,2]
[355145166,1740935454940,-662.97,0.00026646,2]
[355145167,1740935454949,-500.0,0.00026646,2]
[355145168,1740935454958,-500.0,0.00026646,2]
[355145169,1740935454968,-500.0,0.00026646,2]
[355145170,1740935454977,-500.0,0.00026646,2]
[355145171,1740935454987,-1074.83,0.00026646,2]
[355145172,1740935454999,-500.0,0.00026646,2]
[355145173,1740935455010,-500.0,0.00026646,2]
[355145174,1740935455020,-500.0,0.00026646,2]
[355145175,1740935455030,-500.0,0.00026646,2]
[355145176,1740935455040,-500.0,0.00026646,2]
[355145177,1740935455050,-500.0,0.00026646,2]
[355145178,1740935455060,-899.42,0.00026646,2]
[355145179,1740935455070,-500.0,0.00026646,2]
[355145180,1740935455081,-500.0,0.00026646,2]
[355145181,1740935455092,-505.13056368,0.00026646,2]
[355145182,1740935455101,-500.0,0.00026646,2]
[355145183,1740935455111,-500.0,0.00026646,2]
[355145184,1740935455122,-500.0,0.00026646,2]
[355145185,1740935455132,-500.0,0.00026646,2]
[355145186,1740935455142,-500.0,0.00026646,2]
[355145187,1740935455155,-669.98,0.00026646,2]
[355145188,1740935455165,-500.0,0.00026646,2]
[355145189,1740935455177,-500.0,0.00026646,2]
[355145190,1740935455186,-500.0,0.00026646,2]
[355145191,1740935455196,-500.0,0.00026646,2]
[355145192,1740935455207,-500.0,0.00026646,2]
[355145193,1740935455217,-500.0,0.00026646,2]
[355145194,1740935455226,-500.0,0.00026646,2]
[355145195,1740935455236,-500.0,0.00026646,2]
[355145196,1740935455247,-500.0,0.00026646,2]
[355145197,1740935455256,-336.29515814,0.00026646,2]
[355145198,1740935455267,-500.0,0.00026646,2]
[355145199,1740935455276,-500.0,0.00026646,2]
[355145200,1740935455286,-500.0,0.00026646,2]
[355145201,1740935455295,-500.0,0.00026646,2]
[355145202,1740935455305,-515.69981819,0.00026646,2]
[355145203,1740935455315,-508.08497455,0.00026646,2]
[355145204,1740935455327,-500.0,0.00026646,2]
[355145205,1740935455336,-500.0,0.00026646,2]
[355145206,1740935455345,-500.0,0.00026646,2]
[355145207,1740935455355,-500.0,0.00026646,2]
[355145208,1740935455364,-500.0,0.00026646,2]
[355145209,1740935455375,-500.0,0.00026646,2]
[355145210,1740935455386,-500.0,0.00026646,2]
[355145211,1740935455400,-500.0,0.00026646,2]
[355145212,1740935455417,-500.0,0.00026646,2]
[355145213,1740935455427,-581.84,0.00026646,2]
[355145214,1740935455437,-500.0,0.00026646,2]
[355145215,1740935455447,-230.01307442,0.00026646,2]
[355145216,1740935455457,-514.65186075,0.00026646,2]
[355145217,1740935455467,-500.0,0.00026646,2]
[355145218,1740935455478,-511.31224749,0.00026646,2]
[355145219,1740935455488,-500.0,0.00026646,2]
[355145220,1740935455498,-606.08422974,0.00026646,2]
[355145221,1740935455507,-500.0,0.00026646,2]
[355145222,1740935455520,-500.0,0.00026646,2]
[355145223,1740935455530,-500.0,0.00026646,2]
[355145224,1740935455539,-500.0,0.00026646,2]
[355145225,1740935455548,-500.0,0.00026646,2]
[355145226,1740935455558,-500.0,0.00026646,2]
[355145227,1740935455567,-500.0,0.00026646,2]
[355145228,1740935455576,-500.0,0.00026646,2]
[355145229,1740935455585,-500.0,0.00026646,2]
[355145230,1740935455595,-500.0,0.00026646,2]
[355145231,1740935455604,-500.0,0.00026646,2]
[355145232,1740935455613,-500.0,0.00026646,2]
[355145233,1740935455623,-160.16379791,0.00026646,2]
[355145234,1740935455633,-500.0,0.00026646,2]
[355145235,1740935455642,-500.0,0.00026646,2]
[355145236,1740935455655,-500.0,0.00026646,2]
[355145237,1740935455665,-500.94890991,0.00026673,2]
[355145238,1740935455674,-158.44,0.00026691,2]
[355145239,1740935455683,-223.33562074,0.00026717,2]
[355145240,1740935455693,-427.66199852,0.00026719,2]
[355145241,1740935455703,-710.26498118,0.00026797,4]
[355145242,1740935455712,-1100.0,0.000268,9]
[355145243,1740935455722,-1000.65,0.00026809,2]
[355145244,1740935455731,-500.0,0.00026809,2]
[355145245,1740935455741,-951.56,0.00026809,2]
[355145246,1740935455751,-549.94,0.00026809,2]
[355145247,1740935455760,-468.463437,0.00026809,2]
[355145248,1740935455770,-2063.1,0.00026809,2]
[355145249,1740935455780,-500.0,0.00026809,2]
[355145250,1740935455790,-3530.06,0.00026809,2]
[355145251,1740935455800,-1787.7,0.00026809,2]
[355145252,1740935455809,-1392.13,0.00026809,2]
[355145253,1740935455820,-446.400204,0.00026809,2]
[355145254,1740935455830,-2305.84,0.00026809,2]
[355145255,1740935455839,-944.72,0.00026809,2]
[355145256,1740935455849,-1692.25,0.00026809,2]
[355145257,1740935455860,-1984.53,0.00026809,2]
[355145258,1740935455869,-1858.25,0.00026809,2]
[355145259,1740935455878,-1877.6,0.00026809,2]
[355145260,1740935455888,-2260.28,0.00026809,2]
[355145261,1740935455901,-1545.85,0.00026809,2]
[355145262,1740935455911,-2743.48,0.00026809,2]
[355145263,1740935455921,-500.0,0.00026809,2]
[355145264,1740935456028,-782.23,0.00026809,2]
[355145265,1740935456038,-983.95,0.00026809,2]
[355145266,1740935456048,-1833.39,0.00026809,2]
[355145267,1740935456057,-500.0,0.00026809,2]
[355145268,1740935456067,-1322.04,0.00026809,2]
[355145269,1740935456076,-589.95,0.00026809,2]
[355145270,1740935456087,-755.01,0.00026809,2]
[355145271,1740935456099,-500.0,0.00026809,2]
[355145272,1740935456111,-792.02,0.00026809,2]
[355145273,1740935456120,-500.0,0.00026809,2]
[355145274,1740935456131,-500.0,0.00026809,2]
[355145275,1740935456142,-629.63,0.00026809,2]
[355145276,1740935456154,-866.97,0.00026817,2]
[355145277,1740935456164,-1608.92,0.00026817,2]
[355145278,1740935456179,-753.28,0.00026817,2]
[355145279,1740935456191,-748.18,0.00026817,2]
[355145280,1740935456200,-887.74,0.00026817,2]
[355145281,1740935456210,-713.32,0.00026817,2]
[355145282,1740935456220,-1016.5,0.00026817,2]
[355145283,1740935456230,-515.82,0.00026817,2]
[355145284,1740935456239,-1446.08,0.00026817,2]
[355145285,1740935456249,-983.61,0.00026817,2]
[355145286,1740935456259,-500.0,0.00026817,2]
[355145287,1740935456269,-700.02,0.00026817,2]
[355145288,1740935456279,-1574.54,0.00026817,2]
[355145289,1740935456290,-1162.59,0.00026817,2]
[355145290,1740935456302,-1896.07,0.00026817,2]
[355145291,1740935456311,-500.0,0.00026817,2]
[355145292,1740935456321,-1090.1,0.00026817,2]
[355145293,1740935456330,-871.41,0.00026817,2]
[355145294,1740935456339,-500.0,0.00026817,2]
[355145295,1740935456348,-690.94,0.00026817,2]
[355145296,1740935456357,-500.0,0.00026817,2]
[355145297,1740935456366,-500.0,0.00026817,2]
[355145298,1740935456375,-612.73,0.00026817,2]
[355145299,1740935456385,-500.0,0.00026817,2]
[355145300,1740935456398,-177.86,0.00026817,2]
[355145301,1740935456407,-681.36,0.00026817,2]
[355145302,1740935456417,-833.77,0.00026817,2]
[355145303,1740935456426,-8626.7289,0.00026819,2]
[355145304,1740935456436,-525.3821,0.00026819,2]
[355145305,1740935456446,-11234.158,0.00026819,2]
[355145306,1740935456455,-1000.0,0.00026819,2]
[355145307,1740935456464,-286.6424652,0.00026819,2]
[355145308,1740935456473,-578.5,0.00026819,2]
[355145309,1740935456483,-500.0,0.00026819,2]
[355145310,1740935456492,-500.0,0.00026819,2]
[355145311,1740935456503,-500.0,0.00026819,2]
[355145312,1740935456514,-500.0,0.00026819,2]
[355145313,1740935456524,-500.0,0.00026819,2]
[355145314,1740935456534,-500.0,0.00026819,2]
[355145315,1740935456544,-698.38,0.00026819,2]
[355145316,1740935456554,-500.0,0.00026819,2]
[355145317,1740935456563,-500.0,0.00026819,2]
[355145318,1740935456573,-565.88,0.00026819,2]
[355145319,1740935456583,-216.37331228,0.00026819,2]
[355145320,1740935456593,-637.76,0.00026819,2]
[355145321,1740935456602,-721.29,0.00026819,2]
[355145322,1740935456611,-500.0,0.00026819,2]
[355145323,1740935456622,-500.0,0.00026819,2]
[355145324,1740935456634,-244.07793699,0.00026819,2]
[355145325,1740935456644,-500.0,0.00026819,2]
[355145326,1740935456656,-502.4,0.00026819,2]
[355145327,1740935456665,-500.0,0.00026819,2]
[355145328,1740935456675,-500.0,0.00026819,2]
[355145329,1740935456684,-500.0,0.00026819,2]
[355145330,1740935456694,-500.0,0.00026819,2]
[355145331,1740935456705,-500.0,0.00026819,2]
[355145332,1740935456718,-500.0,0.00026819,2]
[355145333,1740935456728,-675.3,0.00026819,2]
[355145334,1740935456739,-500.0,0.00026819,2]
[355145335,1740935456750,-500.0,0.00026819,2]
[355145336,1740935456761,-500.0,0.00026819,2]
[355145337,1740935456771,-500.0,0.00026819,2]
[355145338,1740935456783,-447.89845555,0.00026819,2]
[355145339,1740935456794,-500.0,0.00026819,2]
[355145340,1740935456808,-626.26,0.00026819,2]
[355145341,1740935456818,-500.0,0.00026819,2]
[355145342,1740935456830,-500.0,0.00026819,2]
[355145343,1740935456840,-440.78,0.00026819,2]
[355145344,1740935456850,-456.68,0.00026819,2]
[355145345,1740935456860,-500.0,0.00026819,2]
[355145346,1740935456870,-500.0,0.00026819,2]
[355145347,1740935456880,-500.0,0.00026819,2]
[355145348,1740935456891,-500.0,0.00026819,2]
[355145349,1740935456902,-500.0,0.00026819,2]
[355145350,1740935456912,-500.0,0.00026819,2]
[355145351,1740935456922,-500.0,0.00026819,2]
[355145352,1740935456933,-500.0,0.00026819,2]
[355145353,1740935456943,-500.0,0.00026819,2]
[355145354,1740935456953,-500.0,0.00026819,2]
[355145355,1740935456964,-500.0,0.00026819,2]
[355145356,1740935456974,-500.0,0.00026819,2]
[355145357,1740935456984,-706.4,0.00026819,2]
[355145358,1740935456995,-500.0,0.00026819,2]
[355145359,1740935457005,-500.0,0.00026819,2]
[355145360,1740935457015,-500.0,0.00026819,2]
[355145361,1740935457026,-500.0,0.00026819,2]
[355145362,1740935457036,-500.0,0.00026819,2]
[355145363,1740935457046,-683.26,0.00026819,2]
[355145364,1740935457056,-500.0,0.00026819,2]
[355145365,1740935457067,-200.0,0.00026819,2]
[355145366,1740935457079,-500.0,0.00026819,2]
[355145367,1740935457093,-500.0,0.00026819,2]
[355145368,1740935457104,-500.0,0.00026819,2]
[355145369,1740935457115,-583.03,0.00026819,2]
[355145370,1740935457126,-500.0,0.00026819,2]
[355145371,1740935457136,-592.89,0.00026819,2]
[355145372,1740935457150,-500.0,0.00026819,2]
[355145373,1740935457161,-500.0,0.00026819,2]
[355145374,1740935457172,-500.0,0.00026819,2]
[355145375,1740935457183,-500.0,0.00026819,2]
[355145376,1740935457194,-500.0,0.00026819,2]
[355145377,1740935457204,-376.48562028,0.00026819,2]
[355145378,1740935457216,-500.0,0.00026819,2]
[355145379,1740935457226,-500.0,0.00026819,2]
[355145380,1740935457238,-500.0,0.00026819,2]
[355145381,1740935457249,-524.57,0.00026819,2]
[355145382,1740935457260,-500.0,0.00026819,2]
[355145383,1740935457271,-500.0,0.00026819,2]
[355145384,1740935457282,-500.0,0.00026819,2]
[355145385,1740935457292,-559.99,0.00026819,2]
[355145386,1740935457302,-500.0,0.00026819,2]
[355145387,1740935457313,-500.0,0.00026819,2]
[355145388,1740935457324,-500.0,0.00026819,2]
[355145389,1740935457335,-500.0,0.00026819,2]
[355145390,1740935457345,-500.0,0.00026819,2]
[355145391,1740935457356,-500.0,0.00026819,2]
[355145392,1740935457366,-500.0,0.00026819,2]
[355145393,1740935457376,-623.05,0.00026819,2]
[355145394,1740935457388,-500.0,0.00026819,2]
[355145395,1740935457403,-500.0,0.00026819,2]
[355145396,1740935457414,-500.0,0.00026819,2]
[355145397,1740935457424,-500.0,0.00026819,2]
[355145398,1740935457437,-500.0,0.00026819,2]
[355145399,1740935457447,-500.0,0.00026819,2]
[355145400,1740935457458,-500.0,0.00026819,2]
[355145401,1740935457470,-630.46,0.00026819,2]
[355145402,1740935457480,-243.46,0.00026819,2]
[355145403,1740935457491,-659.2,0.00026819,2]
[355145404,1740935457502,-500.0,0.00026819,2]
[355145405,1740935457512,-500.0,0.00026819,2]
[355145406,1740935457523,-500.0,0.00026819,2]
[355145407,1740935457534,-500.0,0.00026819,2]
[355145408,1740935457544,-500.0,0.00026819,2]
[355145409,1740935457555,-500.0,0.00026819,2]
[355145410,1740935457566,-500.0,0.00026819,2]
[355145411,1740935457577,-500.0,0.00026819,2]
[355145412,1740935457588,-557.65090188,0.00026819,2]
[355145413,1740935457599,-702.63,0.00026819,2]
[355145414,1740935457611,-500.0,0.00026819,2]
[355145415,1740935457621,-500.0,0.00026819,2]
[355145416,1740935457632,-500.0,0.00026819,2]
[355145417,1740935457643,-307.68,0.00026819,2]
[355145418,1740935457658,-500.0,0.00026819,2]
[355145419,1740935457669,-936.9,0.00026819,2]
[355145420,1740935457680,-244.75070968,0.00026819,2]
[355145421,1740935457692,-667.96,0.00026819,2]
[355145422,1740935457703,-500.0,0.00026819,2]
[355145423,1740935457714,-500.0,0.00026819,2]
[355145424,1740935457726,-500.0,0.00026819,2]
[355145425,1740935457738,-500.0,0.00026819,2]
[355145426,1740935457749,-1025.03,0.00026819,2]
[355145427,1740935457760,-500.0,0.00026819,2]
[355145428,1740935457771,-500.0,0.00026819,2]
[355145429,1740935457782,-500.0,0.00026819,2]
[355145430,1740935457793,-1055.0,0.00026819,2]
[355145431,1740935457804,-523.26,0.00026819,2]
[355145432,1740935457816,-500.0,0.00026819,2]
[355145433,1740935457826,-500.0,0.00026819,2]
[355145434,1740935457838,-500.0,0.00026819,2]
[355145435,1740935457849,-500.0,0.00026819,2]
[355145436,1740935457861,-500.0,0.00026819,2]
[355145437,1740935457872,-662.32,0.00026819,2]
[355145438,1740935457883,-500.0,0.00026819,2]
[355145439,1740935457895,-500.0,0.00026819,2]
[355145440,1740935457910,-513.76661525,0.00026819,2]
[355145441,1740935457921,-500.0,0.00026819,2]
[355145442,1740935457932,-974.95,0.00026819,2]
[355145443,1740935457944,-926.01,0.00026819,2]
[355145444,1740935457955,-500.0,0.00026819,2]
[355145445,1740935457966,-500.0,0.00026819,2]
[355145446,1740935457978,-1119.61,0.00026819,2]
[355145447,1740935457989,-500.0,0.00026819,2]
[355145448,1740935458000,-1676.49,0.00026819,2]
[355145449,1740935458012,-502.5,0.00026819,2]
[355145450,1740935458023,-722.94,0.00026819,2]
[355145451,1740935458036,-500.0,0.00026819,2]
[355145452,1740935458048,-500.0,0.00026819,2]
[355145453,1740935458060,-500.0,0.00026819,2]
[355145454,1740935458085,-703.35,0.00026819,2]
[355145455,1740935458103,-1854.52,0.00026819,2]
[355145456,1740935458117,-1030.9,0.00026819,2]
[355145457,1740935458133,-1915.68,0.00026819,2]
[355145458,1740935458151,-304.06610608,0.00026819,2]
[355145459,1740935458169,-500.0,0.00026819,2]
[355145460,1740935458186,-215.13446133,0.00026819,2]
[355145461,1740935458203,-500.0,0.00026819,2]
[355145462,1740935458218,-229.01385545,0.00026819,2]
[355145463,1740935458231,-1673.41,0.00026819,2]
[355145464,1740935458245,-500.0,0.00026819,2]
[355145465,1740935458261,-1951.2,0.00026819,2]
[355145466,1740935458276,-500.0,0.00026819,2]
[355145467,1740935458291,-500.0,0.00026819,2]
[355145468,1740935458306,-500.0,0.00026819,2]
[355145469,1740935458323,-1999.97,0.00026819,2]
[355145470,1740935458338,-500.0,0.00026819,2]
[355145471,1740935458354,-500.0,0.00026819,2]
[355145472,1740935458369,-1168.67,0.00026819,2]
[355145473,1740935458383,-500.0,0.00026819,2]
[355145474,1740935458399,-500.0,0.00026819,2]
[355145475,1740935458414,-500.0,0.00026819,2]
[355145476,1740935458430,-500.0,0.00026819,2]
[355145477,1740935458445,-903.16,0.00026819,2]
[355145478,1740935458459,-169.47442345,0.00026819,2]
[355145479,1740935458471,-215.88630691,0.00026819,2]
[355145480,1740935458665,-284.11369309,0.00026819,2]
[355145481,1740935458679,-500.0,0.00026819,2]
[355145482,1740935458693,-1488.34,0.00026819,2]
[355145483,1740935458708,-420.4012779,0.00026819,2]
[355145484,1740935458754,-500.0,0.00026271,2]
[355145485,1740935458768,-70.52346001,0.00026819,2]
[355145486,1740935459430,-500.0,0.00024899,2]
[355145487,1740935459443,-325.61,0.00025173,2]
[355145488,1740935459456,-89.54690093,0.00026545,2]
[355145489,1740935459477,-410.45309907,0.00026545,2]
[355145490,1740935459489,-9.07526209,0.00026819,2]
[355145491,1740935459502,-500.0,0.00026819,2]
[355145492,1740935459514,-500.0,0.00026819,2]
[355145493,1740935459527,-500.0,0.00026819,2]
[355145494,1740935459539,-1386.61,0.00026819,2]
[355145495,1740935459553,-500.0,0.00026819,2]
[355145496,1740935459566,-2329.47,0.00026819,2]
[355145497,1740935459579,-500.0,0.00026819,2]
[355145498,1740935459593,-556.08,0.00026819,2]
[355145499,1740935459607,-500.0,0.00026819,2]
[355145500,1740935459619,-500.0,0.00026819,2]
[355145501,1740935459632,-500.0,0.00026819,2]
[355145502,1740935459644,-509.4,0.00026819,2]
[355145503,1740935459659,-835.62,0.00026819,2]
[355145504,1740935459671,-1574.12,0.00026819,2]
[355145505,1740935459684,-500.0,0.00026819,2]
[355145506,1740935459696,-500.0,0.00026819,2]
[355145507,1740935459709,-500.0,0.00026819,2]
[355145508,1740935459721,-503.74,0.00026819,2]
[355145509,1740935459733,-1294.32,0.00026819,2]
[355145510,1740935459745,-500.0,0.00026819,2]
[355145511,1740935459758,-500.0,0.00026819,2]
[355145512,1740935459771,-500.0,0.00026819,2]
[355145513,1740935459784,-500.0,0.00026819,2]
[355145514,1740935459797,-543.72,0.00026819,2]
[355145515,1740935459810,-500.0,0.00026819,2]
[355145516,1740935459822,-500.0,0.00026819,2]
[355145517,1740935459835,-500.0,0.00026819,2]
[355145518,1740935459847,-518.58,0.00026819,2]
[355145519,1740935459860,-500.0,0.00026819,2]
[355145520,1740935459873,-500.0,0.00026819,2]
[355145521,1740935459885,-1450.0,0.00026819,2]
[355145522,1740935459901,-600.63,0.00026819,2]
[355145523,1740935459914,-500.0,0.00026819,2]
[355145524,1740935459926,-500.0,0.00026819,2]
[355145525,1740935459935,-1587.21,0.00026819,2]
[355145526,1740935459944,-500.0,0.00026819,2]
[355145527,1740935459953,-500.0,0.00026819,2]
[355145528,1740935459964,-1341.09,0.00026819,2]
[355145529,1740935459974,-500.0,0.00026819,2]
[355145530,1740935459984,-500.0,0.00026819,2]
[355145531,1740935459995,-500.0,0.00026819,2]
[355145532,1740935460005,-1065.46,0.00026819,2]
[355145533,1740935460016,-500.0,0.00026819,2]
[355145534,1740935460027,-728.14,0.00026819,2]
[355145535,1740935460037,-500.0,0.00026819,2]
[355145536,1740935460048,-1506.0,0.00026819,2]
[355145537,1740935460059,-500.0,0.00026819,2]
[355145538,1740935460071,-892.25,0.00026819,2]
[355145539,1740935460082,-978.03163884,0.00026819,2]
[355145540,1740935460095,-1221.43836116,0.00026819,2]
[355145541,1740935460108,-500.0,0.00026819,2]
[355145542,1740935460119,-500.0,0.00026819,2]
[355145543,1740935460129,-500.0,0.00026819,2]
[355145544,1740935460139,-3288.2,0.00026819,2]
[355145545,1740935460153,-500.0,0.00026819,2]
[355145546,1740935460163,-500.0,0.00026819,2]
[355145547,1740935460175,-1561.67,0.00026819,2]
[355145548,1740935460186,-500.0,0.00026819,2]
[355145549,1740935460196,-500.0,0.00026819,2]
[355145550,1740935460206,-500.0,0.00026819,2]
[355145551,1740935460215,-500.0,0.00026819,2]
[355145552,1740935460226,-500.0,0.00026819,2]
[355145553,1740935460236,-500.0,0.00026819,2]
[355145554,1740935460245,-500.0,0.00026819,2]
[355145555,1740935460256,-430.1015063,0.00026819,2]
[355145556,1740935460266,-1782.59013254,0.00026827,2]
[355145557,1740935460278,-2024.2117116,0.00026827,2]
[355145558,1740935460288,-1700.0,0.000269,9]
[355145559,1740935460297,-171.87941761,0.00026907,2]
[355145560,1740935460308,-500.0,0.00026916,2]
[355145561,1740935460317,-1284.47,0.00026917,2]
[355145562,1740935460326,-3353.57,0.00026917,2]
[355145563,1740935460336,-511.12,0.00026917,2]
[355145564,1740935460346,-1041.28,0.00026917,2]
[355145565,1740935460355,-1046.36,0.00026917,2]
[355145566,1740935460365,-1263.84,0.00026917,2]
[355145567,1740935460375,-1350.8,0.00026917,2]
[355145568,1740935460384,-1000.0,0.00026917,2]
[355145569,1740935460393,-500.0,0.00026917,2]
[355145570,1740935460405,-1787.98,0.00026917,2]
[355145571,1740935460415,-797.85,0.00026917,2]
[355145572,1740935460425,-567.88,0.00026917,2]
[355145573,1740935460435,-2952.97,0.00026917,2]
[355145574,1740935460444,-2310.14,0.00026917,2]
[355145575,1740935460454,-500.0,0.00026918,2]
[355145576,1740935460464,-500.0,0.00026918,2]
[355145577,1740935460473,-500.0,0.00026918,2]
[355145578,1740935460482,-500.0,0.00026919,2]
[355145579,1740935460491,-500.0,0.00026919,2]
[355145580,1740935460501,-500.0,0.00026919,2]
[355145581,1740935460510,-500.0,0.00026919,2]
[355145582,1740935460519,-500.0,0.00026919,2]
[355145583,1740935460530,-599.61,0.00026919,2]
[355145584,1740935460539,-500.0,0.00026919,2]
[355145585,1740935461044,-500.0,0.00026919,2]
[355145586,1740935461067,-500.0,0.00026919,2]
[355145587,1740935461085,-500.0,0.00026919,2]
[355145588,1740935461097,-500.0,0.00026919,2]
[355145589,1740935461110,-500.0,0.00026919,2]
[355145590,1740935461120,-500.0,0.00026919,2]
[355145591,1740935461130,-660.18,0.00026919,2]
[355145592,1740935461140,-524.39,0.00026919,2]
[355145593,1740935461154,-500.0,0.00026919,2]
[355145594,1740935461165,-713.07,0.00026919,2]
[355145595,1740935461176,-500.0,0.00026919,2]
[355145596,1740935461187,-500.0,0.00026919,2]
[355145597,1740935461198,-892.51,0.00026919,2]
[355145598,1740935461209,-522.46,0.00026919,2]
[355145599,1740935461219,-796.82,0.00026919,2]
[355145600,1740935461230,-500.0,0.00026919,2]
[355145601,1740935461240,-716.78,0.00026919,2]
[355145602,1740935461250,-500.0,0.00026919,2]
[355145603,1740935461260,-500.0,0.00026919,2]
[355145604,1740935461271,-522.84,0.00026919,2]
[355145605,1740935461280,-500.0,0.00026919,2]
[355145606,1740935461290,-500.0,0.00026919,2]
[355145607,1740935461301,-500.0,0.00026919,2]
[355145608,1740935461311,-626.56,0.00026919,2]
[355145609,1740935461320,-822.36,0.00026919,2]
[355145610,1740935461329,-500.0,0.00026919,2]
[355145611,1740935461339,-527.31,0.00026919,2]
[355145612,1740935461349,-894.8,0.00026919,2]
[355145613,1740935461359,-620.84,0.00026919,2]
[355145614,1740935461368,-500.0,0.00026919,2]
[355145615,1740935461378,-517.03,0.00026919,2]
[355145616,1740935461387,-576.06,0.00026919,2]
[355145617,1740935461396,-500.0,0.00026919,2]
[355145618,1740935461409,-608.42,0.00026919,120]
[355145619,1740935461419,-714.53,0.00026919,2]
[355145620,1740935461428,-821.68,0.00026919,2]
[355145621,1740935461438,-737.08,0.00026919,2]
[355145622,1740935461447,-500.0,0.00026919,2]
[355145623,1740935461456,-822.77,0.00026919,2]
[355145624,1740935461465,-500.0,0.00026919,2]
[355145625,1740935461474,-500.0,0.00026919,2]
[355145626,1740935461483,-500.0,0.00026919,2]
[355145627,1740935461493,-500.0,0.00026919,2]
[355145628,1740935461503,-500.0,0.00026919,2]
[355145629,1740935461512,-500.0,0.00026919,2]
[355145630,1740935461522,-500.0,0.00026919,2]
[355145631,1740935461532,-500.0,0.00026919,2]
[355145632,1740935461542,-500.0,0.00026919,2]
[355145633,1740935461551,-500.0,0.00026919,2]
[355145634,1740935461561,-500.0,0.00026919,2]
[355145635,1740935461571,-564.65,0.00026919,2]
[355145636,1740935461580,-686.05,0.00026919,2]
[355145637,1740935461590,-500.0,0.00026919,2]
[355145638,1740935461599,-500.0,0.00026919,2]
[355145639,1740935461609,-507.87,0.00026919,2]
[355145640,1740935461618,-500.0,0.00026919,2]
[355145641,1740935461628,-715.08,0.00026919,2]
[355145642,1740935461638,-500.0,0.00026919,2]
[355145643,1740935461647,-990.17,0.00026919,2]
[355145644,1740935461662,-1023.69,0.00026919,2]
[355145645,1740935461672,-1082.81,0.00026919,2]
[355145646,1740935461682,-500.0,0.00026919,2]
[355145647,1740935461691,-316.23696775,0.00026919,2]